Workbook

Sheet Ratings
A1: AMRL Rating Estimates - Hot Mix Asphalt Gyratory | C1: Final Report Date: | E1: 2014-08-27 | G1: Sample 1: | H1: 37 | J1: Sample 2: | K1: 38
A3: Lab Name | B3: Lab # | G3: Nini Gyr. | H3: 8 | J3: Ndes Gyr. | K3: 100
A4: Your Lab Name Here | B4: 1
A6: Location
A7: Your Company Name - City, ST | K7: v 0.1
B9: ="Sample " &$H$1 -> Sample 37 | G9: ="Sample " &$K$1 -> Sample 38
A10: Test Title | B10: Lab Data | C10: Avg. | D10: 1S | E10: Z-Score | F10: Rating | G10: Lab Data | H10: Avg. | I10: 1S | J10: Z-Score | K10: Rating
A11: Maximum Specific Gravity (Gyratory) Maximum Specific Gravity - T209/D2041 | B11: 2.565 | C11: 2.5639 | D11: 0.0075 | E11: =IF(D11="","",(B11-C11)/D11) -> 0.1466666667 | F11: =IF(E11="","",frating(B11,C11,D11)) -> 5 | G11: 2.511 | H11: 2.515 | I11: 0.007 | J11: =IF(I11="","",(G11-H11)/I11) -> -0.5714285714 | K11: =IF(J11="","",frating(G11,H11,I11)) -> -5
A13: Bulk Specific Gravity Saturated Surface-Dry Method (Gyratory) Bulk Specific Gravity Saturated Surface-Dry Method (Gyratory) - T166/D2776 | B13: 2.467 | C13: 2.4695 | D13: 0.0134 | E13: =IF(D13="","",(B13-C13)/D13) -> -0.1865671642 | F13: =IF(E13="","",frating(B13,C13,D13)) -> -5 | G13: 2.43 | H13: 2.4106 | I13: 0.0095 | J13: =IF(I13="","",(G13-H13)/I13) -> 2.042105263 | K13: =IF(J13="","",frating(G13,H13,I13)) -> 2
A15: Bulk Specfic Gravity Using Vacuum Selaing Method Bulk Specific Gravity (Vacuum Selaing Method) - T331/D6752 | B15: 2.376 | C15: 2.4585 | D15: 0.0172 | E15: =IF(D15="","",(B15-C15)/D15) -> -4.796511628 | F15: =IF(E15="","",frating(B15,C15,D15)) -> 0 | G15: 2.333 | H15: 2.4077 | I15: 0.0117 | J15: =IF(I15="","",(G15-H15)/I15) -> -6.384615385 | K15: =IF(J15="","",frating(G15,H15,I15)) -> 0
A17: ="Hot Mix Asphalt Superpave Gyratory Compactor Height During Compaction after " & $H$3 & " gyrations (0.1 mm) - T312/D6925" -> Hot Mix Asphalt Superpave Gyratory Compactor Height During Compaction after 8 gyrations (0.1 mm) - T312/D6925 | B17: 126.1 | C17: 125.53 | D17: 1.03 | E17: =IF(D17="","",(B17-C17)/D17) -> 0.5533980583 | F17: =IF(E17="","",frating(B17,C17,D17)) -> 5 | G17: 130.8 | H17: 123.86 | I17: 0.74 | J17: =IF(I17="","",(G17-H17)/I17) -> 9.378378378 | K17: =IF(J17="","",frating(G17,H17,I17)) -> 0
A19: ="Hot Mix Asphalt Superpave Gyratory Compactor Height During Compaction after " & $K$3 & " gyrations (0.1 mm) - T312/D6925" -> Hot Mix Asphalt Superpave Gyratory Compactor Height During Compaction after 100 gyrations (0.1 mm) - T312/D6925 | B19: 116.5 | C19: 116.21 | D19: 0.81 | E19: =IF(D19="","",(B19-C19)/D19) -> 0.3580246914 | F19: =IF(E19="","",frating(B19,C19,D19)) -> 5 | G19: 122.3 | H19: 115.64 | I19: 0.57 | J19: =IF(I19="","",(G19-H19)/I19) -> 11.68421053 | K19: =IF(J19="","",frating(G19,H19,I19)) -> 0
A21: ="Hot Mix Asphalt Superpave Gyratory Compactor Percent of Maximum Specific Gravity after " & $H$3 & " gyrations (0.1 percent) - T312/D6925" -> Hot Mix Asphalt Superpave Gyratory Compactor Percent of Maximum Specific Gravity after 8 gyrations (0.1 percent) - T312/D6925 | B21: 91.4 | C21: 89.14 | D21: 0.64 | E21: =IF(D21="","",(B21-C21)/D21) -> 3.53125 | F21: =IF(E21="","",frating(B21,C21,D21)) -> 0 | G21: 91.8 | H21: 89.46 | I21: 0.53 | J21: =IF(I21="","",(G21-H21)/I21) -> 4.41509434 | K21: =IF(J21="","",frating(G21,H21,I21)) -> 0
A23: ="Hot Mix Asphalt Superpave Gyratory Compactor Percent of Maximum Specific Gravity after " & $K$3 & " gyrations (0.1 percent) - T312/D6925" -> Hot Mix Asphalt Superpave Gyratory Compactor Percent of Maximum Specific Gravity after 100 gyrations (0.1 percent) - T312/D6925 | B23: 95.8 | C23: 96.31 | D23: 0.6 | E23: =IF(D23="","",(B23-C23)/D23) -> -0.85 | F23: =IF(E23="","",frating(B23,C23,D23)) -> -5 | G23: 95.7 | H23: 95.85 | I23: 0.46 | J23: =IF(I23="","",(G23-H23)/I23) -> -0.3260869565 | K23: =IF(J23="","",frating(G23,H23,I23)) -> -5

Sheet Ratings (2)
A1: AMRL Rating Estimates - Hot Mix Asphalt Gyratory | C1: Final Report Date: | E1: =Ratings!$E$1 -> 2014-08-27 | G1: Sample 1: | H1: =Ratings!$H$1 -> 37 | J1: Sample 2: | K1: =Ratings!$K$1 -> 38
A3: Lab Name | B3: Lab # | G3: Nini Gyr. | H3: 8 | J3: Ndes Gyr. | K3: 100
A4: =Ratings!$A$4 -> Your Lab Name Here | B4: =Ratings!$B$4 -> 1
A6: Location
A7: =Ratings!$A$7 -> Your Company Name - City, ST | K7: =Ratings!K7 -> v 0.1
B9: ="Sample " &$H$1 -> Sample 37 | G9: ="Sample " &$K$1 -> Sample 38
A10: Test Title | B10: Lab Data | C10: Avg. | D10: 1S | E10: Z-Score | F10: Rating | G10: Lab Data | H10: Avg. | I10: 1S | J10: Z-Score | K10: Rating
A11: Maximum Specific Gravity (Gyratory) Maximum Specific Gravity - T209/D2041 | B11: 2.565 | C11: 2.5639 | D11: 0.0075 | E11: =IF(D11="","",(B11-C11)/D11) -> 0.1466666667 | F11: =IF(E11="","",frating(B11,C11,D11)) -> 5 | G11: 2.511 | H11: 2.515 | I11: 0.007 | J11: =IF(I11="","",(G11-H11)/I11) -> -0.5714285714 | K11: =IF(J11="","",frating(G11,H11,I11)) -> -5
A13: Bulk Specific Gravity Saturated Surface-Dry Method (Gyratory) Bulk Specific Gravity Saturated Surface-Dry Method (Gyratory) - T166/D2776 | B13: 2.467 | C13: 2.4695 | D13: 0.0134 | E13: =IF(D13="","",(B13-C13)/D13) -> -0.1865671642 | F13: =IF(E13="","",frating(B13,C13,D13)) -> -5 | G13: 2.43 | H13: 2.4106 | I13: 0.0095 | J13: =IF(I13="","",(G13-H13)/I13) -> 2.042105263 | K13: =IF(J13="","",frating(G13,H13,I13)) -> 2
A15: Bulk Specfic Gravity Using Vacuum Selaing Method Bulk Specific Gravity (Vacuum Selaing Method) - T331/D6752 | B15: 2.376 | C15: 2.4585 | D15: 0.0172 | E15: =IF(D15="","",(B15-C15)/D15) -> -4.796511628 | F15: =IF(E15="","",frating(B15,C15,D15)) -> 0 | G15: 2.333 | H15: 2.4077 | I15: 0.0117 | J15: =IF(I15="","",(G15-H15)/I15) -> -6.384615385 | K15: =IF(J15="","",frating(G15,H15,I15)) -> 0
A17: ="Hot Mix Asphalt Superpave Gyratory Compactor Height During Compaction after " & $H$3 & " gyrations (0.1 mm) - T312/D6925" -> Hot Mix Asphalt Superpave Gyratory Compactor Height During Compaction after 8 gyrations (0.1 mm) - T312/D6925 | B17: 126.1 | C17: 125.53 | D17: 1.03 | E17: =IF(D17="","",(B17-C17)/D17) -> 0.5533980583 | F17: =IF(E17="","",frating(B17,C17,D17)) -> 5 | G17: 130.8 | H17: 123.86 | I17: 0.74 | J17: =IF(I17="","",(G17-H17)/I17) -> 9.378378378 | K17: =IF(J17="","",frating(G17,H17,I17)) -> 0
A19: ="Hot Mix Asphalt Superpave Gyratory Compactor Height During Compaction after " & $K$3 & " gyrations (0.1 mm) - T312/D6925" -> Hot Mix Asphalt Superpave Gyratory Compactor Height During Compaction after 100 gyrations (0.1 mm) - T312/D6925 | B19: 116.5 | C19: 116.21 | D19: 0.81 | E19: =IF(D19="","",(B19-C19)/D19) -> 0.3580246914 | F19: =IF(E19="","",frating(B19,C19,D19)) -> 5 | G19: 122.3 | H19: 115.64 | I19: 0.57 | J19: =IF(I19="","",(G19-H19)/I19) -> 11.68421053 | K19: =IF(J19="","",frating(G19,H19,I19)) -> 0
A21: ="Hot Mix Asphalt Superpave Gyratory Compactor Percent of Maximum Specific Gravity after " & $H$3 & " gyrations (0.1 percent) - T312/D6925" -> Hot Mix Asphalt Superpave Gyratory Compactor Percent of Maximum Specific Gravity after 8 gyrations (0.1 percent) - T312/D6925 | B21: 91.4 | C21: 89.14 | D21: 0.64 | E21: =IF(D21="","",(B21-C21)/D21) -> 3.53125 | F21: =IF(E21="","",frating(B21,C21,D21)) -> 0 | G21: 91.8 | H21: 89.46 | I21: 0.53 | J21: =IF(I21="","",(G21-H21)/I21) -> 4.41509434 | K21: =IF(J21="","",frating(G21,H21,I21)) -> 0
A23: ="Hot Mix Asphalt Superpave Gyratory Compactor Percent of Maximum Specific Gravity after " & $K$3 & " gyrations (0.1 percent) - T312/D6925" -> Hot Mix Asphalt Superpave Gyratory Compactor Percent of Maximum Specific Gravity after 100 gyrations (0.1 percent) - T312/D6925 | B23: 95.8 | C23: 96.31 | D23: 0.6 | E23: =IF(D23="","",(B23-C23)/D23) -> -0.85 | F23: =IF(E23="","",frating(B23,C23,D23)) -> -5 | G23: 95.7 | H23: 95.85 | I23: 0.46 | J23: =IF(I23="","",(G23-H23)/I23) -> -0.3260869565 | K23: =IF(J23="","",frating(G23,H23,I23)) -> -5

Sheet Ratings (3)
A1: AMRL Rating Estimates - Hot Mix Asphalt Gyratory | C1: Final Report Date: | E1: =Ratings!$E$1 -> 2014-08-27 | G1: Sample 1: | H1: =Ratings!$H$1 -> 37 | J1: Sample 2: | K1: =Ratings!$K$1 -> 38
A3: Lab Name | B3: Lab # | G3: Nini Gyr. | H3: 8 | J3: Ndes Gyr. | K3: 100
A4: =Ratings!$A$4 -> Your Lab Name Here | B4: =Ratings!$B$4 -> 1
A6: Location
A7: =Ratings!$A$7 -> Your Company Name - City, ST | K7: =Ratings!K7 -> v 0.1
B9: ="Sample " &$H$1 -> Sample 37 | G9: ="Sample " &$K$1 -> Sample 38
A10: Test Title | B10: Lab Data | C10: Avg. | D10: 1S | E10: Z-Score | F10: Rating | G10: Lab Data | H10: Avg. | I10: 1S | J10: Z-Score | K10: Rating
A11: Maximum Specific Gravity (Gyratory) Maximum Specific Gravity - T209/D2041 | B11: 2.565 | C11: 2.5639 | D11: 0.0075 | E11: =IF(D11="","",(B11-C11)/D11) -> 0.1466666667 | F11: =IF(E11="","",frating(B11,C11,D11)) -> 5 | G11: 2.511 | H11: 2.515 | I11: 0.007 | J11: =IF(I11="","",(G11-H11)/I11) -> -0.5714285714 | K11: =IF(J11="","",frating(G11,H11,I11)) -> -5
A13: Bulk Specific Gravity Saturated Surface-Dry Method (Gyratory) Bulk Specific Gravity Saturated Surface-Dry Method (Gyratory) - T166/D2776 | B13: 2.467 | C13: 2.4695 | D13: 0.0134 | E13: =IF(D13="","",(B13-C13)/D13) -> -0.1865671642 | F13: =IF(E13="","",frating(B13,C13,D13)) -> -5 | G13: 2.43 | H13: 2.4106 | I13: 0.0095 | J13: =IF(I13="","",(G13-H13)/I13) -> 2.042105263 | K13: =IF(J13="","",frating(G13,H13,I13)) -> 2
A15: Bulk Specfic Gravity Using Vacuum Selaing Method Bulk Specific Gravity (Vacuum Selaing Method) - T331/D6752 | B15: 2.376 | C15: 2.4585 | D15: 0.0172 | E15: =IF(D15="","",(B15-C15)/D15) -> -4.796511628 | F15: =IF(E15="","",frating(B15,C15,D15)) -> 0 | G15: 2.333 | H15: 2.4077 | I15: 0.0117 | J15: =IF(I15="","",(G15-H15)/I15) -> -6.384615385 | K15: =IF(J15="","",frating(G15,H15,I15)) -> 0
A17: ="Hot Mix Asphalt Superpave Gyratory Compactor Height During Compaction after " & $H$3 & " gyrations (0.1 mm) - T312/D6925" -> Hot Mix Asphalt Superpave Gyratory Compactor Height During Compaction after 8 gyrations (0.1 mm) - T312/D6925 | B17: 126.1 | C17: 125.53 | D17: 1.03 | E17: =IF(D17="","",(B17-C17)/D17) -> 0.5533980583 | F17: =IF(E17="","",frating(B17,C17,D17)) -> 5 | G17: 130.8 | H17: 123.86 | I17: 0.74 | J17: =IF(I17="","",(G17-H17)/I17) -> 9.378378378 | K17: =IF(J17="","",frating(G17,H17,I17)) -> 0
A19: ="Hot Mix Asphalt Superpave Gyratory Compactor Height During Compaction after " & $K$3 & " gyrations (0.1 mm) - T312/D6925" -> Hot Mix Asphalt Superpave Gyratory Compactor Height During Compaction after 100 gyrations (0.1 mm) - T312/D6925 | B19: 116.5 | C19: 116.21 | D19: 0.81 | E19: =IF(D19="","",(B19-C19)/D19) -> 0.3580246914 | F19: =IF(E19="","",frating(B19,C19,D19)) -> 5 | G19: 122.3 | H19: 115.64 | I19: 0.57 | J19: =IF(I19="","",(G19-H19)/I19) -> 11.68421053 | K19: =IF(J19="","",frating(G19,H19,I19)) -> 0
A21: ="Hot Mix Asphalt Superpave Gyratory Compactor Percent of Maximum Specific Gravity after " & $H$3 & " gyrations (0.1 percent) - T312/D6925" -> Hot Mix Asphalt Superpave Gyratory Compactor Percent of Maximum Specific Gravity after 8 gyrations (0.1 percent) - T312/D6925 | B21: 91.4 | C21: 89.14 | D21: 0.64 | E21: =IF(D21="","",(B21-C21)/D21) -> 3.53125 | F21: =IF(E21="","",frating(B21,C21,D21)) -> 0 | G21: 91.8 | H21: 89.46 | I21: 0.53 | J21: =IF(I21="","",(G21-H21)/I21) -> 4.41509434 | K21: =IF(J21="","",frating(G21,H21,I21)) -> 0
A23: ="Hot Mix Asphalt Superpave Gyratory Compactor Percent of Maximum Specific Gravity after " & $K$3 & " gyrations (0.1 percent) - T312/D6925" -> Hot Mix Asphalt Superpave Gyratory Compactor Percent of Maximum Specific Gravity after 100 gyrations (0.1 percent) - T312/D6925 | B23: 95.8 | C23: 96.31 | D23: 0.6 | E23: =IF(D23="","",(B23-C23)/D23) -> -0.85 | F23: =IF(E23="","",frating(B23,C23,D23)) -> -5 | G23: 95.7 | H23: 95.85 | I23: 0.46 | J23: =IF(I23="","",(G23-H23)/I23) -> -0.3260869565 | K23: =IF(J23="","",frating(G23,H23,I23)) -> -5

Sheet Notes
A1: Note | B1: Description
A2: 1 | B2: Z-Scores and ratings may be slightly different than AMRL final report values due to rounding.
A3: 2 | B3: Ratings <= -2 and >= 2 are marked in red color font and may require an investigation and a response to ODOT's Bitimunous Engineer.
A4: 3 | B4: Response form may be found at the link below.
A5: 4 | B5: http://amrl.net/Amrlsitefinity/Libraries/AMRL_Document_Library/Proficiency_Sample_Corrective_Action_Report.sflb.ashx
A6: 5 | B6: See AMRL's web site below for current forms and to enter and track your AMRL proficiency samples.
A7: 6 | B7: http://amrl.net/Amrlsitefinity/default.aspx
A8: 7 | B8: Generic explaination of ratings below.
A9: 8 | B9: http://amrl.net/Amrlsitefinity/Libraries/AMRL_Document_Library/Generic_Explanation_of_PSP_ratings.sflb.ashx
A10: 9 | B10: Qualified asphalt labs and mix design labs with "A" and "AD" designations must participate in two specific AMRL proficiency sample programs. Link of labs and link to policy is shown below.
A11: 10 | B11: http://www.odot.org/materials/htm-smap/11069.html
A12: 11 | B12: AMRL mixing demos and presentation link below.
A13: 12 | B13: http://www.ok.gov/odot/Doing_Business/Construction/Materials_&_Testing_e-Guide/pres.html

Sheet Investigation
B2: Root Cause Analysis
B3: Attach any documentation in the response form to the ODOT Bituminous Engineer that details any investigation performed below:
B4: 1 | C4: Check equipment calibration and verification records.
B5: a. | C5: Repeat equipment verifications that might affect test results.
B6: 2 | C6: Verify that results reported were those used on lab worksheets.
B7: 3 | C7: Re-compute test results submitted for sample.
B8: 4 | C8: Perform the test on another sample while being observed by supervisior.
B9: 5 | C9: Obtain an extra AMRL sample or an OMRL sample where the known results can be compared and compute what ratings would have been.
B10: 6 | C10: Consult with Materials Division or other AMRL accredited labs with experience.
B12: Corrective Action
B13: Some example responses:
B14: 1 | C14: No cause could be found at this time. An OMRL sample is available. We will obtain the sample and complete those tests in one week and report back. We will compare our results to see if the problem persists or the low rating was an anomaly.
B15: 2 | C15: The problem appears to be that an incorrect sample weight was used. Too little sample resulted in an overly compacted sample as verified by an OMRL sample where the proper sample weight was used and compared to one where too little material was used . The technician was instructed on September 25, 2014 that "all" AMRL material batched should be used for AASHTO T 312 compaction.
B16: 3 | C16: The SGC, ODOT inventory number #258490, was out of calibration for internal angle as shown in the attached records. It was recalibrated and those records are attached. An OMRL sample compacted after the recalibration would have resulted in a rating of -4. Those records are attached.
C18: Some of the reports can be hard to follow just which item is being addressed. I suggest that the title be included in the response form in the root cause analysis area to make the response item more clear. For example, for the first AASHTO T 312 item number 4, "Hot Mix Asphalt Superpave Gyrator Compactor Height During Compaction after 8 gyrations (0.1mm)".
C20: Recompute this ratings file or PDF copy if an Extra sample or OMRL sample is tested during the investigation.
